Cogmind - Beta 16 @@@ ROGUE MODE // 2026.01.22 @ 01:26:58 Player: applejuice Result: Destroyed by G-67 Veteran with Plasma Rifle Performance ------------- Evolutions (4) 2000 Regions Visited (14) 2800 Robots Destroyed (14) 70 Value Destroyed (347) 347 Prototype IDs (12) 240 Alien Tech Used (0) 0 Bonus (462) 462 TOTAL SCORE: 5919 Bonus ------- Follower Combat Kills 162 Met Data Miner 300 Cogmind --------- Core Integrity 0/850 Matter 300/300 Energy 100/100 System Corruption 0% Temperature Cool (1) Movement Flying (35) Location -5/Proximity Caves Parts ------- > --- POWER (2) -------- (None) > --- PROPULSION (5) --- VTOL Module > --- UTILITY (6) ------ (None) > --- WEAPON (2) ------- Heavy Pick > --- INVENTORY (5) ---- Improved Sensor Array Makeshift Transmission Jammer Makeshift Hacking Suite Great Maul Peak State ------------ > --- POWER ------------ Angular Momentum Engine Light Angular Momentum Engine > --- PROPULSION ------- Cesium-ion Thruster Improved Cesium-ion Thruster Nuclear Pulse Thruster Nuclear Pulse Thruster Nuclear Pulse Thruster > --- UTILITY ---------- Small Storage Unit Advanced Weight Redist. System Advanced Sensor Array Improved Signal Interpreter Hacking Suite > --- WEAPON ----------- Heavy Pick > --- INVENTORY -------- Nuclear Pulse Thruster Improved Sensor Array Makeshift Transmission Jammer Improved Propulsion Shielding Makeshift Hacking Suite Great Maul [Rating: 55] Favorites ----------- Power Light Ion Engine Engine Light Ion Engine Propulsion Flight Unit Leg Aluminum Leg Flight Unit Flight Unit Utility Small Storage Unit Device ECM Suite Storage Small Storage Unit Processor Improved Signal Interpreter Hackware Hacking Suite Weapon Small Laser Energy Gun Small Laser Ballistic Gun Assault Rifle Launcher Grenade Launcher Special Weapon Mining Laser Impact Weapon Great Maul Piercing Weapon Heavy Pick Build | -11 -10 -10 -9 -9 -9 -8 -8 -7 -7 -6 -6 -6 -6 -5 ------- Run | Yrd Mat Min Mat Min Exi Min Mat Fac Sto Fac Low Low Dat Pro Slots Evolved 8 | . . . 2 . . . 2 2 . 2 . . . . Power 1 | . . . . . . . . . . 1 . . . . Propulsion 3 | . . . 1 . . . 1 1 . . . . . . Utility 4 | . . . 1 . . . 1 1 . 1 . . . . Weapon . | . . . . . . . . . . . . . . . Parts Attached 46 | 6 1 3 6 1 2 1 8 3 2 7 . 1 . 5 Power 7 | 1 . . 1 . . 1 . 1 . 2 . 1 . . Engine 7 | 1 . . 1 . . 1 . 1 . 2 . 1 . . Core . | . . . . . . . . . . . . . . . Reactor . | . . . . . . . . . . . . . . . Propulsion 13 | 2 . . 2 . . . 1 . 1 2 . . . 5 Treads . | . . . . . . . . . . . . . . . Leg 2 | 2 . . . . . . . . . . . . . . Wheel . | . . . . . . . . . . . . . . . Hover . | . . . . . . . . . . . . . . . Flight 11 | . . . 2 . . . 1 . 1 2 . . . 5 Utility 13 | 1 . 1 2 1 . . 3 2 1 2 . . . . Device 8 | . . . 1 1 . . 1 2 1 2 . . . . Storage 1 | 1 . . . . . . . . . . . . . . Processor 2 | . . 1 1 . . . . . . . . . . . Hackware 2 | . . . . . . . 2 . . . . . . . Protection . | . . . . . . . . . . . . . . . Artifact . | . . . . . . . . . . . . . . . Weapon 13 | 2 1 2 1 . 2 . 4 . . 1 . . . . Energy Gun 3 | 1 . 2 . . . . . . . . . . . . Energy Cannon . | . . . . . . . . . . . . . . . Ballistic Gun 3 | 1 . . . . 2 . . . . . . . . . Ballistic Cannon . | . . . . . . . . . . . . . . . Launcher 1 | . 1 . . . . . . . . . . . . . Special Weapon 1 | . . . 1 . . . . . . . . . . . Impact Weapon 4 | . . . . . . . 4 . . . . . . . Slashing Weapon . | . . . . . . . . . . . . . . . Piercing Weapon 1 | . . . . . . . . . . 1 . . . . Special Melee Weapon . | . . . . . . . . . . . . . . . Unidentified Prototypes 1 | . . . . . . . . . 1 . . . . . Parts Lost 26 | . . 4 4 . . . . . 1 . 1 2 . 14 Power 5 | . . 1 1 . . . . . . . 1 . . 2 Propulsion 12 | . . 1 1 . . . . . 1 . . 1 . 8 Utility 6 | . . . 1 . . . . . . . . 1 . 4 Weapon 3 | . . 2 1 . . . . . . . . . . . Highest Loss Streak 12 | . . 2 4 . . . . . 1 . 1 3 . 12 To Critical Strikes . | . . . . . . . . . . . . . . . Average Backups 5 | . 2 2 3 3 6 8 7 7 8 7 8 8 8 5 Power . | . 1 1 . . . . 1 1 1 . . . . . Propulsion . | . . . . . . . . . . . 2 3 3 . Utility 3 | . . . 1 2 4 4 4 4 5 5 4 4 4 3 Weapon 1 | . 1 1 1 1 2 3 2 2 1 1 1 1 1 1 Tool/Special . | . . . . . . . . . . . . . . . Unused Backups 5 | . . . . . . 1 1 . . . 1 . . 2 Power 1 | . . . . . . . 1 . . . . . . . Propulsion 1 | . . . . . . . . . . . 1 . . . Utility 3 | . . . . . . 1 . . . . . . . 2 Weapon . | . . . . . . . . . . . . . . . Tool/Special . | . . . . . . . . . . . . . . . Average Slot Usage (%) 72 | . 85 84 59 77 70 66 79 76 77 78 92 81 80 42 Engine 7 | . 14 13 6 . . 6 9 7 7 12 12 11 13 4 Leg 6 | . 28 25 5 . . . . . . . . . . . Flight 16 | . . . 5 22 22 22 26 23 24 23 33 26 26 14 Device 7 | . . . 2 11 11 4 4 15 15 15 20 14 13 5 Storage 9 | . 14 14 11 11 11 11 9 7 7 6 6 6 6 3 Processor 7 | . . 3 15 11 11 11 9 7 7 6 6 6 6 5 Hackware 2 | . . . . . . . 8 7 7 6 6 6 6 2 Energy Gun 4 | . 5 13 11 11 4 . . . . . . . . . Ballistic Gun 4 | . 14 13 . . 6 11 1 . . . . . . . Special Weapon 1 | . . . . 11 4 . . . . . . . . . Impact Weapon 1 | . . . . . . . 11 7 7 3 . . . . Piercing Weapon 1 | . . . . . . . . . . 2 6 6 6 4 Peak Build Rating 55 | 6 6 11 12 10 17 14 24 26 32 51 51 52 51 55 Average Rating 18 | 4 5 7 9 9 11 13 19 24 27 39 50 50 51 24 On Entrance 22 | . 6 6 8 10 9 13 13 21 26 31 51 48 51 51 Avg Prop Armor Cover (%) 17 | . . . . . 7 . . . . . . . . 20 Naked Turns . | . . . . . . . . . . . . . . . Heaviest Build 33 | 12 13 15 14 9 9 10 16 20 20 25 25 33 31 31 Greatest Support 39 | 20 20 20 10 10 10 10 16 22 31 38 38 38 33 39 Greatest Overweight (x) 4 | 3 . 1 4 . 1 . 1 . . . . . . 1 Average Overweight (x) . | . . . . . . . . . . . . . . . Largest Inventory Capacity 8 | 8 8 8 8 8 8 8 8 8 8 8 8 8 8 8 Average Capacity 7 | 7 8 8 8 8 8 8 8 8 8 8 8 8 8 6 Most Carried 8 | 2 4 3 4 4 8 8 8 8 8 8 8 8 8 8 Average Carried 5 | . 2 2 3 3 6 8 7 7 8 7 8 8 8 5 Final Capacity 8 | 8 8 8 8 8 8 8 8 8 8 8 8 8 8 5 Final Carried 8 | 2 3 3 3 4 8 8 8 8 8 8 8 8 8 4 Class Distribution -------------------- 54% | Mutant 32% | Sprinter 9% | Commander-Mutant 3% | Commander-Sprinter Dominant Class ---------------- Mutant | -10/Materials Mutant | -10/Mines Mutant | -9/Materials Mutant | -9/Mines Mutant | -9/Exiles Commander-Mutant | -8/Mines Sprinter | -8/Materials Sprinter | -7/Factory Sprinter | -7/Storage Sprinter | -6/Factory Sprinter | -6/Lower Caves Sprinter | -6/Lower Caves Sprinter | -6/Data Miner Mutant | -5/Proximity Caves Resources | -11 -10 -10 -9 -9 -9 -8 -8 -7 -7 -6 -6 -6 -6 -5 ----------- Run | Yrd Mat Min Mat Min Exi Min Mat Fac Sto Fac Low Low Dat Pro Matter Collected 709 | 195 . 162 20 30 . 27 23 104 26 . 54 36 . 32 Remotely . | . . . . . . . . . . . . . . . Salvage Created 342 | . 51 68 51 . . 33 53 . 38 . . . . 48 Parts 18 | . 1 2 3 . . 5 . . 2 . . . . 5 Haulers Intercepted 1 | . . . . . . . . . 1 . . . . . Recyclers Shooed . | . . . . . . . . . . . . . . . Parts Field Recycled . | . . . . . . . . . . . . . . . Retrieved Matter . | . . . . . . . . . . . . . . . Parts Self-Destructed 8 | . . . . . . . . . . . . . . 8 Prevented . | . . . . . . . . . . . . . . . Parts Restored . | . . . . . . . . . . . . . . . Kills | -11 -10 -10 -9 -9 -9 -8 -8 -7 -7 -6 -6 -6 -6 -5 ------- Run | Yrd Mat Min Mat Min Exi Min Mat Fac Sto Fac Low Low Dat Pro Combat Hostiles Destroyed 9 | . 2 2 3 . . . . . . . . . . 2 Melee 2 | . . . . . . . . . . . . . . 2 Guns 4 | . . 1 3 . . . . . . . . . . . AOE 3 | . 2 1 . . . . . . . . . . . . Classes Destroyed 5 | . 1 . 1 . . 1 1 . 1 . . . . . Worker 2 | . . . . . . 2 . . . . . . . . Hauler 1 | . . . . . . . . . 1 . . . . . Watcher 2 | . . . . . . . 2 . . . . . . . Swarmer 5 | . . . 3 . . . . . . . . . . 2 Grunt 4 | . 2 2 . . . . . . . . . . . . Best Kill Streak 4 | . 2 4 3 . . 2 1 . 1 . . . . 2 Combat Bots Only 4 | . 2 4 3 . . . . . . . . . . 2 Max Kills in Single Turn 1 | . 1 1 1 . . 1 1 . 1 . . . . 1 Gunslinging . | . . . . . . . . . . . . . . . Exploded 1 | . 1 1 . . . . . . . . . . . . Melee 1 | . . . . . . . . . . . . . . 1 Uniques/NPCs Destroyed . | . . . . . . . . . . . . . . . Combat | -11 -10 -10 -9 -9 -9 -8 -8 -7 -7 -6 -6 -6 -6 -5 -------- Run | Yrd Mat Min Mat Min Exi Min Mat Fac Sto Fac Low Low Dat Pro Hostile Shots Fired 243 | . 25 27 25 . . . 12 . 22 . 3 15 . 114 Missed 99 | . 8 9 8 . . . 6 . 10 . . 9 . 49 Hits 144 | . 17 18 17 . . . 6 . 12 . 3 6 . 65 Projectile 144 | . 17 18 17 . . . 6 . 12 . 3 6 . 65 AOE 7 | . . . . . . . . . . . . . . 7 Critical Strikes 3 | . . 2 . . . . . . . . . . . 1 Damage Taken 2511 | . 222 308 273 . . . 92 . 105 . 39 95 . 1377 Core 1102 | . 41 78 61 . . . 45 . 23 . 12 18 . 824 Absorbed by Shields . | . . . . . . . . . . . . . . . Core Remaining (%) 84 | 100 . 52 . . . 84 91 . 96 . . . . . Volleys Fired 18 | . 3 5 8 . . 2 . . . . . . . . Largest 2 | . 2 2 1 . . 1 . . . . . . . . Hottest 95 | . 50 95 40 . . 24 . . . . . . . . Shots Fired 25 | . 6 9 8 . . 2 . . . . . . . . Gun 21 | . 3 8 8 . . 2 . . . . . . . . Cannon . | . . . . . . . . . . . . . . . Launcher 4 | . 3 1 . . . . . . . . . . . . Special . | . . . . . . . . . . . . . . . Kinetic 10 | . 3 5 . . . 2 . . . . . . . . Thermal 11 | . . 3 8 . . . . . . . . . . . Explosive 4 | . 3 1 . . . . . . . . . . . . Electromagnetic . | . . . . . . . . . . . . . . . Robot Hit Streak 6 | . 6 5 1 . . 6 . . . . . . . . Robot Miss Streak 3 | . . 2 3 . . . . . . . . . . . Penetration Max . | . . . . . . . . . . . . . . . Secondary Targets . | . . . . . . . . . . . . . . . Shots Hit Robots 22 | . 6 5 3 . . 2 3 . 1 . . . . 2 Core Hits 19 | . 5 5 3 . . 3 1 . . . . . . 2 Critical Kills . | . . . . . . . . . . . . . . . Critical Parts Destroyed 1 | . . . . . . . . . 1 . . . . . Critical Strikes 1 | . . . . . . . . . 1 . . . . . Smash 1 | . . . . . . . . . 1 . . . . . Melee Attacks 17 | . . . . . . . 5 . 7 . . . . 5 Impact 12 | . . . . . . . 5 . 7 . . . . . Slashing . | . . . . . . . . . . . . . . . Piercing 5 | . . . . . . . . . . . . . . 5 Sneak Attacks 1 | . . . . . . . . . 1 . . . . . Combat Hostiles . | . . . . . . . . . . . . . . . Follow-up Attacks . | . . . . . . . . . . . . . . . Damage Inflicted 819 | . 227 157 46 . . 53 173 . 101 . . . . 62 Guns 185 | . 37 49 46 . . 53 . . . . . . . . Cannons . | . . . . . . . . . . . . . . . Explosions 297 | . 189 108 . . . . . . . . . . . . Melee 336 | . . . . . . . 173 . 101 . . . . 62 Ramming 1 | . 1 . . . . . . . . . . . . . Kinetic 128 | . 37 38 . . . 53 . . . . . . . . Thermal 99 | . . 53 46 . . . . . . . . . . . Explosive 255 | . 189 66 . . . . . . . . . . . . Electromagnetic . | . . . . . . . . . . . . . . . Impact 274 | . . . . . . . 173 . 101 . . . . . Slashing . | . . . . . . . . . . . . . . . Piercing 62 | . . . . . . . . . . . . . . 62 Highest Corruption 1 | . . . 1 1 1 1 . . . . . . . . Average Corruption 1 | . . . 1 1 1 1 . . . . . . . . Corruption Purged . | . . . . . . . . . . . . . . . Corruption Blocked . | . . . . . . . . . . . . . . . Overload Shots . | . . . . . . . . . . . . . . . Overflow Damage 188 | . . 33 . . . . 54 . 101 . . . . . Projectiles . | . . . . . . . . . . . . . . . Explosions 33 | . . 33 . . . . . . . . . . . . Melee 155 | . . . . . . . 54 . 101 . . . . . Knockbacks . | . . . . . . . . . . . . . . . Impact . | . . . . . . . . . . . . . . . Kinetic . | . . . . . . . . . . . . . . . Secondary . | . . . . . . . . . . . . . . . Self-Inflicted Damage 34 | . . 34 . . . . . . . . . . . . Shots 1 | . . 1 . . . . . . . . . . . . Rammed . | . . . . . . . . . . . . . . . Targets Rammed 1 | . 1 . . . . . . . . . . . . . Kicked 1 | . 1 . . . . . . . . . . . . . Crushed . | . . . . . . . . . . . . . . . Highest Temperature 147 | . 17 49 . . . . . . 3 23 147 18 2 94 Average Temperature 35 | . 9 14 . . . . . . 3 13 78 4 1 36 Received Heat Transfer 390 | . 126 126 6 . . . 27 . 36 . . 30 . 39 Siege Activations . | . . . . . . . . . . . . . . . Martial Activations . | . . . . . . . . . . . . . . . Shielding Activations . | . . . . . . . . . . . . . . . Robots Disrupted . | . . . . . . . . . . . . . . . Combat Hostiles . | . . . . . . . . . . . . . . . Robots Corrupted 2 | . . . . . . . 1 . 1 . . . . . Combat Hostiles . | . . . . . . . . . . . . . . . Parts Fried . | . . . . . . . . . . . . . . . Impact Corruptions 3 | . . . . . . . 2 . 1 . . . . . Robots Melted . | . . . . . . . . . . . . . . . Combat Hostiles . | . . . . . . . . . . . . . . . Parts Melted 1 | . . . 1 . . . . . . . . . . . Heat Transferred 225 | . . 125 100 . . . . . . . . . . . Parts Sabotaged . | . . . . . . . . . . . . . . . Parts Stolen . | . . . . . . . . . . . . . . . Parts Stripped . | . . . . . . . . . . . . . . . Power Chain Reactions . | . . . . . . . . . . . . . . . Alert | -11 -10 -10 -9 -9 -9 -8 -8 -7 -7 -6 -6 -6 -6 -5 ------- Run | Yrd Mat Min Mat Min Exi Min Mat Fac Sto Fac Low Low Dat Pro Maximum Alert Level . | . . . . . . . . . . . . . . . Low Security (%) 100 | 100 100 100 100 100 . 100 100 100 100 100 . . . . Level 1 . | . . . . . . . . . . . . . . . Level 2 . | . . . . . . . . . . . . . . . Level 3 . | . . . . . . . . . . . . . . . Level 4 . | . . . . . . . . . . . . . . . Level 5 . | . . . . . . . . . . . . . . . High Security . | . . . . . . . . . . . . . . . Max Security . | . . . . . . . . . . . . . . . Peak Influence 113 | . 51 113 70 15 . 12 106 2 80 30 . . . . Initial 15 | . . 15 . 15 . . . 2 . 2 . . . . Average 25 | . 8 43 19 3 . 4 47 . 35 2 . . . . Influence Increases 1065 | . 51 130 70 . . 12 195 . 155 30 . 105 . 317 Destroy 0b10 Robot/C 320 | . 40 60 60 . . . 60 . . . . . . 100 Destroy 0b10 Robot/NC 25 | . . . . . . 10 10 . 5 . . . . . Destroy Leader 66 | . . 10 10 . . . 34 . 2 . . . . 10 Allied During Kill 47 | . . 2 . . . 2 11 . 5 . . . . 27 Successful Hack 11 | . . . . . . . 5 . 6 . . . . . Disable Machine 90 | . . 45 . . . . 15 . 30 . . . . . Destroy Structure 26 | . 11 13 . . . . . . 2 . . . . . Partial Spotted 75 | . . . . . . . 15 . 30 30 . . . . Lose Combat Pursuer 405 | . . . . . . . 45 . 75 . . 105 . 180 Influence Decreases 853 | . 10 171 30 40 . 10 192 5 150 5 30 30 75 105 Entered New Map 146 | . . 26 . 25 . . 2 3 . 3 12 . 75 . Time Decay 407 | . 10 110 30 15 . 10 70 2 40 2 18 30 . 70 Lost Part 55 | . . 10 . . . . . . 10 . . . . 35 Lost Ally 245 | . . 25 . . . . 120 . 100 . . . . . Squads Dispatched 9 | . 3 . . . . . 3 . 2 . . . . 1 Investigation 1 | . . . . . . . . . 1 . . . . . Extermination . | . . . . . . . . . . . . . . . Reinforcement 7 | . 3 . . . . . 3 . 1 . . . . . Assault 1 | . . . . . . . . . . . . . . 1 Garrison . | . . . . . . . . . . . . . . . Intercept . | . . . . . . . . . . . . . . . Searches Triggered . | . . . . . . . . . . . . . . . Construction Impeded . | . . . . . . . . . . . . . . . Haulers Reinforced . | . . . . . . . . . . . . . . . Active Scanning Responses . | . . . . . . . . . . . . . . . Cargo Convoy Interrupts . | . . . . . . . . . . . . . . . Stealth | -11 -10 -10 -9 -9 -9 -8 -8 -7 -7 -6 -6 -6 -6 -5 --------- Run | Yrd Mat Min Mat Min Exi Min Mat Fac Sto Fac Low Low Dat Pro Distress Signals 8 | . . . 1 . . . 2 . 1 . . . . 4 Communications Jammed . | . . . . . . . . . . . . . . . Distress Signals . | . . . . . . . . . . . . . . . Times Spotted 83 | . 12 3 11 . . . 9 . 11 1 3 7 . 26 Peak Tracking Total 15 | . 9 2 7 . . . 5 . 8 1 3 7 . 15 Tactical Retreats 12 | . . . . . . . 2 . 2 . 1 2 . 5 ECM-based Alert Blocks 4 | . . . . . . . . . . . 4 . . . Traps | -11 -10 -10 -9 -9 -9 -8 -8 -7 -7 -6 -6 -6 -6 -5 ------- Run | Yrd Mat Min Mat Min Exi Min Mat Fac Sto Fac Low Low Dat Pro Traps Triggered 2 | . . . 1 . . . . . 1 . . . . . Indirectly . | . . . . . . . . . . . . . . . Trap Hack Attempts . | . . . . . . . . . . . . . . . Triggered . | . . . . . . . . . . . . . . . Disarmed . | . . . . . . . . . . . . . . . Reprogrammed . | . . . . . . . . . . . . . . . Reused . | . . . . . . . . . . . . . . . Traps Extracted . | . . . . . . . . . . . . . . . Installed . | . . . . . . . . . . . . . . . Triggered . | . . . . . . . . . . . . . . . Machines | -11 -10 -10 -9 -9 -9 -8 -8 -7 -7 -6 -6 -6 -6 -5 ---------- Run | Yrd Mat Min Mat Min Exi Min Mat Fac Sto Fac Low Low Dat Pro Machines Disabled 8 | . 1 4 . . . . 1 . 2 . . . . . Max in Single Turn 3 | . 1 3 . . . . 1 . 1 . . . . . Machines Repaired . | . . . . . . . . . . . . . . . Machines Dismantled . | . . . . . . . . . . . . . . . Machines Sabotaged . | . . . . . . . . . . . . . . . Overloaded Fab Kills . | . . . . . . . . . . . . . . . Hacking | -11 -10 -10 -9 -9 -9 -8 -8 -7 -7 -6 -6 -6 -6 -5 --------- Run | Yrd Mat Min Mat Min Exi Min Mat Fac Sto Fac Low Low Dat Pro Machines Accessed 9 | . . . 1 . . . 2 . 1 1 . . 4 . Terminals 2 | . . . . . . . 1 . 1 . . . . . Fabricators 1 | . . . . . . . . . . 1 . . . . Repair Stations . | . . . . . . . . . . . . . . . Recycling Units . | . . . . . . . . . . . . . . . Scanalyzers 2 | . . . 1 . . . 1 . . . . . . . Garrison Access . | . . . . . . . . . . . . . . . Total Hacks 43 | . . . 3 . . . 5 . 1 1 . . 33 . Successful 40 | . . . 3 . . . 3 . 1 . . . 33 . Failed 3 | . . . . . . . 2 . . 1 . . . . Catastrophic . | . . . . . . . . . . . . . . . Database Lockouts . | . . . . . . . . . . . . . . . Manual . | . . . . . . . . . . . . . . . Terminals 4 | . . . . . . . 3 . 1 . . . . . Fabricators 1 | . . . . . . . . . . 1 . . . . Repair Stations . | . . . . . . . . . . . . . . . Recycling Units . | . . . . . . . . . . . . . . . Scanalyzers 5 | . . . 3 . . . 2 . . . . . . . Garrison Access . | . . . . . . . . . . . . . . . Terminal Hacks 35 | . . . . . . . 1 . 1 . . . 33 . Record 11 | . . . . . . . . . . . . . 11 . Part Schematic 13 | . . . . . . . . . . . . . 13 . Robot Schematic 6 | . . . . . . . . . . . . . 6 . Prototype ID Bank 3 | . . . . . . . . . . . . . 3 . Open Door 1 | . . . . . . . . . 1 . . . . . Zone Layout 1 | . . . . . . . 1 . . . . . . . Fabricator Hacks . | . . . . . . . . . . . . . . . Repair Station Hacks . | . . . . . . . . . . . . . . . Recycling Unit Hacks . | . . . . . . . . . . . . . . . Scanalyzer 5 | . . . 3 . . . 2 . . . . . . . Retrieve Study 5 | . . . 3 . . . 2 . . . . . . . Garrison Access Hacks . | . . . . . . . . . . . . . . . Unauthorized Hacks . | . . . . . . . . . . . . . . . Terminals . | . . . . . . . . . . . . . . . Fabricators . | . . . . . . . . . . . . . . . Repair Stations . | . . . . . . . . . . . . . . . Recycling Units . | . . . . . . . . . . . . . . . Scanalyzers . | . . . . . . . . . . . . . . . Garrison Access . | . . . . . . . . . . . . . . . Data Cores Recovered . | . . . . . . . . . . . . . . . Used . | . . . . . . . . . . . . . . . Hacking Detections 2 | . . . . . . . 1 . . 1 . . . . Full Trace Events . | . . . . . . . . . . . . . . . Feedback Events . | . . . . . . . . . . . . . . . Feedback Blocked . | . . . . . . . . . . . . . . . Robot Schematics Acquired 6 | . . . . . . . . . . . . . 6 . Robots Built . | . . . . . . . . . . . . . . . Authchips . | . . . . . . . . . . . . . . . Time . | . . . . . . . . . . . . . . . Total Robot Build Rating . | . . . . . . . . . . . . . . . Part Schematics Acquired 13 | . . . . . . . . . . . . . 13 . Parts Built . | . . . . . . . . . . . . . . . Authchips . | . . . . . . . . . . . . . . . Time . | . . . . . . . . . . . . . . . Total Part Build Rating . | . . . . . . . . . . . . . . . Part Studies Acquired 5 | . . . 3 . . . 2 . . . . . . . Parts Repaired . | . . . . . . . . . . . . . . . Time . | . . . . . . . . . . . . . . . Parts Recycled . | . . . . . . . . . . . . . . . Recycled Matter . | . . . . . . . . . . . . . . . Retrieved Matter . | . . . . . . . . . . . . . . . Retrieved Components . | . . . . . . . . . . . . . . . Parts Scanalyzed . | . . . . . . . . . . . . . . . Part Schematics Acquired . | . . . . . . . . . . . . . . . Parts Damaged . | . . . . . . . . . . . . . . . Bothacking | -11 -10 -10 -9 -9 -9 -8 -8 -7 -7 -6 -6 -6 -6 -5 ------------ Run | Yrd Mat Min Mat Min Exi Min Mat Fac Sto Fac Low Low Dat Pro Used RIF Installer . | . . . . . . . . . . . . . . . Robots Hacked . | . . . . . . . . . . . . . . . Non-combat . | . . . . . . . . . . . . . . . Combat . | . . . . . . . . . . . . . . . Robot Hacks Applied . | . . . . . . . . . . . . . . . Relay Couplers Released . | . . . . . . . . . . . . . . . Fabnet Peak Effective % . | . . . . . . . . . . . . . . . Robots Rewired 5 | . . . . . 3 . . . 2 . . . . . Allies Hacked . | . . . . . . . . . . . . . . . Hacks Repelled . | . . . . . . . . . . . . . . . Allies | -11 -10 -10 -9 -9 -9 -8 -8 -7 -7 -6 -6 -6 -6 -5 -------- Run | Yrd Mat Min Mat Min Exi Min Mat Fac Sto Fac Low Low Dat Pro Total Allies 19 | . . 2 . 3 3 . . . 10 . . . . 1 Largest Group 10 | . . 2 . 3 6 6 6 . 10 . . . . 1 Highest-Rated Group 173 | . . 46 . 40 90 90 90 . 173 . . . . 96 Highest-Rated Ally 96 | . . 31 . 16 21 21 21 . 29 . . . . 96 Total Orders . | . . . . . . . . . . . . . . . Ally Attacks 68 | . . 7 . . . . 32 . 16 . . . . 13 Total Damage 1184 | . . 100 . . . . 347 . 206 . . . . 531 Kills 7 | . . 1 . . . . 3 . . . . . . 3 Allies Corrupted . | . . . . . . . . . . . . . . . Allies Melted . | . . . . . . . . . . . . . . . Intel | -11 -10 -10 -9 -9 -9 -8 -8 -7 -7 -6 -6 -6 -6 -5 ------- Run | Yrd Mat Min Mat Min Exi Min Mat Fac Sto Fac Low Low Dat Pro Active Infowar (turns) 565 | . . . . 11 . . 76 59 98 65 73 105 27 51 Sensors 554 | . . . . . . . 76 59 98 65 73 105 27 51 Jamming 1 | . . . . . . . . 1 . . . . . . ECM 125 | . . . . 11 . . . . . 17 73 24 . . Robot Analysis Total . | . . . . . . . . . . . . . . . Derelict Logs Recovered 8 | . . 1 . 1 . . . . . . 1 2 . 3 Drone Launches . | . . . . . . . . . . . . . . . Drone Recoveries . | . . . . . . . . . . . . . . . Exploration | -11 -10 -10 -9 -9 -9 -8 -8 -7 -7 -6 -6 -6 -6 -5 ------------- Run | Yrd Mat Min Mat Min Exi Min Mat Fac Sto Fac Low Low Dat Pro Turns Passed 1885 | 49 101 309 140 126 317 38 149 59 98 65 73 105 27 229 Spaces Moved 3417 | 34 74 208 118 178 582 22 334 171 220 159 267 367 95 588 Core 110 | 12 . . 7 . . . . . . . . . . 91 Treads . | . . . . . . . . . . . . . . . Legs 340 | 22 74 208 36 . . . . . . . . . . . Wheels . | . . . . . . . . . . . . . . . Hover . | . . . . . . . . . . . . . . . Flight 2967 | . . . 75 178 582 22 334 171 220 159 267 367 95 497 Fastest Speed 26 | 50 120 120 37 37 37 37 32 32 28 26 26 26 28 26 Average Speed 43 | 112 120 129 93 37 37 37 32 32 30 29 26 27 28 34 Slowest Speed 250 | 200 120 190 250 37 120 37 112 32 32 30 26 28 28 105 Overloaded Moves . | . . . . . . . . . . . . . . . Propulsion Burnouts . | . . . . . . . . . . . . . . . Robots Hopped 18 | . . . 2 4 4 . . 1 3 1 . . . 3 Potential Cave-ins . | . . . . . . . . . . . . . . . Cave-ins Triggered . | . . . . . . . . . . . . . . . Exploration Rate (%) 40 | 4 27 49 20 49 89 7 50 7 45 5 51 56 75 74 Regions Visited 14 Branch Regions 9 Pre-discovered Areas 4 | . . 1 . 1 . . . . . . . . 1 1 Known Exits Taken 10 | . . . 1 1 1 1 1 1 . 1 1 1 1 . Unknown Exits Taken 4 | 1 1 1 . . . . . . 1 . . . . . Scrap Searched 8 | . . 1 . 1 . . . . . . 2 3 . 1 Spaces Dug 3 | . . . . . . . . . 3 . . . . . Terrain Destroyed 33 | . 12 18 . . . . . . 3 . . . . . Melee 3 | . . . . . . . . . 3 . . . . . Projectile . | . . . . . . . . . . . . . . . AOE 30 | . 12 18 . . . . . . . . . . . . Terrain Rammed . | . . . . . . . . . . . . . . . Walls Destroyed . | . . . . . . . . . . . . . . . Machines Disabled . | . . . . . . . . . . . . . . . Actions | -11 -10 -10 -9 -9 -9 -8 -8 -7 -7 -6 -6 -6 -6 -5 --------- Run | Yrd Mat Min Mat Min Exi Min Mat Fac Sto Fac Low Low Dat Pro Total 3735 | 41 80 237 134 233 678 49 365 174 234 176 270 368 94 602 Wait 184 | . . 21 2 58 68 22 6 . . 2 . 1 . 4 Move 3371 | 33 73 207 113 171 573 21 333 168 215 156 266 366 94 582 Hop 14 | . . . 2 2 4 . . 1 1 1 . . . 3 Pick Up 18 | 2 1 . 2 . 3 1 3 . 2 2 2 . . . Fast Attach 34 | 6 . 2 5 1 2 1 7 1 1 5 . 1 . 2 Attach 12 | . 1 1 2 . . . . 1 . 3 . . . 4 Detach 10 | . 1 1 . 1 2 . 1 1 . 2 . . . 1 Swap 5 | . . . . . . . 2 1 1 1 . . . . Drop 23 | . . . . . 2 2 8 1 3 4 2 . . 1 Fire 18 | . 3 5 8 . . 2 . . . . . . . . Melee 17 | . . . . . . . 5 . 7 . . . . 5 Ram . | . . . . . . . . . . . . . . . Kick 1 | . 1 . . . . . . . . . . . . . Crush . | . . . . . . . . . . . . . . . Escape Stasis . | . . . . . . . . . . . . . . . Rewire 28 | . . . . . 24 . . . 4 . . . . . Trap . | . . . . . . . . . . . . . . . Miscellaneous . | . . . . . . . . . . . . . . . Route ------- -11/Scrapyard -10/Materials -10/Mines -9/Materials -9/Mines -9/Exiles -8/Mines -8/Materials -7/Factory -7/Storage -6/Factory -6/Lower Caves -6/Lower Caves -6/Data Miner -5/Proximity Caves (discovered 1 exit: Fac) History --------- Turn | Location | Event 22 | -11/Scrapyard | Discovered new exit (range 13) 50 | -11/Scrapyard | Entered Materials 131 | -10/Materials | Discovered new exit (range 9) 151 | -10/Materials | Entered Mines 246 | -10/Mines | Assembled infested the area 310 | -10/Mines | Build established: Mutant 335 | -10/Mines | Learned location of Storage (-7) 355 | -10/Mines | Joined a pair of Derelicts in attacking an 0b10 outpost 403 | -10/Mines | Lost 4 allies 435 | -10/Mines | Discovered new exit (range 14) 460 | -10/Mines | Entered Materials 460 | -9/Materials | Evolved 2 slots: Propulsion x1, Utility x1 576 | -9/Materials | Lost 4 parts (1p1n1u1w) 592 | -9/Materials | Discovered new exit (range 15) 600 | -9/Materials | Identified exit to Mines 600 | -9/Materials | Entered Mines 612 | -9/Mines | Assisted by bots powering up and referring to "LRC-V3" 621 | -9/Mines | Found a hidden stash of uninstalled traps 646 | -9/Mines | Learned location of Zion (-7) 666 | -9/Mines | Deemed a non-threat by the Exiles lab entrance 667 | -9/Mines | Discovered new exit (range 5) 668 | -9/Mines | Identified exit to Exiles 710 | -9/Mines | Met a Derelict bent on vengeance 726 | -9/Mines | Entered Exiles 726 | -9/Exiles | Found Exiles lab destroyed 726 | -9/Exiles | Accompanied by 3 allies 971 | -9/Exiles | Discovered new exit (range 12) 975 | -9/Exiles | Identified exit to Mines 1043 | -9/Exiles | Entered Mines 1043 | -8/Mines | Accompanied by 6 allies 1046 | -8/Mines | Discovered new exit (range 13) 1058 | -8/Mines | Identified exit to Materials 1081 | -8/Mines | Entered Materials 1081 | -8/Materials | Accompanied by 6 allies 1081 | -8/Materials | Evolved 2 slots: Propulsion x1, Utility x1 1221 | -8/Materials | Discovered new exit (range 7) 1222 | -8/Materials | Identified exit to Factory 1230 | -8/Materials | Entered Factory 1230 | -7/Factory | Evolved 2 slots: Propulsion x1, Utility x1 1283 | -7/Factory | Discovered new exit (range 12) 1289 | -7/Factory | Identified exit to Storage 1289 | -7/Factory | Entered Storage 1347 | -7/Storage | Assisted by bots powering up and referring to "LRC-V3" 1386 | -7/Storage | Discovered new exit (range 6) 1387 | -7/Storage | Entered Factory 1387 | -6/Factory | Evolved 2 slots: Power x1, Utility x1 1447 | -6/Factory | Discovered new exit (range 7) 1452 | -6/Factory | Identified exit to Lower Caves 1452 | -6/Factory | Entered Lower Caves 1481 | -6/Lower Caves | Encountered a Warlord checkpoint 1483 | -6/Lower Caves | Spotted B-75 Beast 1521 | -6/Lower Caves | Learned Factory garrison access intel 1523 | -6/Lower Caves | Discovered new exit (range 7) 1524 | -6/Lower Caves | Identified exit to Lower Caves 1525 | -6/Lower Caves | Entered another Lower Caves area 1525 | -6/Lower Caves | Spotted B-75 Beast 1562 | -6/Lower Caves | Encountered a Warlord checkpoint 1570 | -6/Lower Caves | Learned Factory stockpile data 1580 | -6/Lower Caves | Lost 3 parts (1p1n1u) 1629 | -6/Lower Caves | Discovered new exit (range 9) 1630 | -6/Lower Caves | Identified exit to Data Miner 1630 | -6/Lower Caves | Entered Data Miner 1630 | -6/Data Miner | Discovered new exit (range 6) 1632 | -6/Data Miner | Identified exit to Proximity Caves 1636 | -6/Data Miner | Met Data Miner 1644 | -6/Data Miner | Learned location of Section 7 (-2) 1644 | -6/Data Miner | Acquired the access code to Warlord's prototype stash 1650 | -6/Data Miner | Received God Mode back door access code from Data Miner 1657 | -6/Data Miner | Entered Proximity Caves 1674 | -5/Proximity Caves | Build established: Sprinter 1689 | -5/Proximity Caves | Spotted B-75 Beast 1690 | -5/Proximity Caves | Identified exit to Factory 1756 | -5/Proximity Caves | Attracted the attention of an 0b10 outpost 1786 | -5/Proximity Caves | Core integrity fell below 50% 1793 | -5/Proximity Caves | Unaware initiated a cargo recovery operation 1809 | -5/Proximity Caves | Escorted by Enhanced Grunt 1814 | -5/Proximity Caves | Core integrity fell below 20% 1817 | -5/Proximity Caves | Lost 12 parts (2p7n3u) 1842 | -5/Proximity Caves | Learned Factory interactive machine intel 1869 | -5/Proximity Caves | Attracted the attention of an 0b10 checkpoint 1886 | -5/Proximity Caves | Destroyed by G-67 Veteran with Plasma Rifle Last Messages --------------- 01809_ Enhanced Grunt: "Protecting LRC-V3." 01811_ S-27 Virus destroyed. 01814_ VTOL Module fries itself beyond repair. 01814_ S-27 Virus destroyed. 01817_ Acquired 10 matter. 01824_ S-27 Virus destroyed. 01828_ Acquired VTOL Module. 01829_ Autogun fries itself beyond repair. 01830_ Acquired 10 matter. 01831_ Acquired VTOL Module. 01833_ Acquired 10 matter. 01842_ Acquired derelict log, extracted data. Data stored: Factory interactive machine intel. 01867_ Acquired derelict log, extracted data. World map updated: -7/Factory. 01868_ Penetrated by Slug. 01868_ VTOL Module destroyed. 01869_ Y-64 Sentinel: "INTERCEPTING UNREGISTERED DERELICT." 01877_ Imp. Signal Interpreter destroyed. Map ----- +----------------------------------------------------+ | | | | | | | | | | | ?????????????????????????????????????????????????? | | ?????????????????????????????????????????????????? | | ?????????????????????????????????????????????????? | | ?????????????????????????????????????????????????? | | ?????????????????????????????????????????????????? | | ?????????????????????????????????????????????????? | | ?????????????????????????????????????????????????? | | ?????????????????????????????????????????????????? | | ?????????????????????????????????????????????????? | | ?????????????????????????????????????????????##### | | ?????????????????????????????????????????????# | | ?????????????????????????????????????????????# | | ?????????????????????????????????????????????# | | ?????????????????????????????????????????????# | | ?????????????????????????????????????????????# | | ???????????????????####?????####?????????????# | | ???????????????????# ???## ##????????????# | | ???????????????????# ???# #???????????### | | ???????????????????# ggg?## # #??????????## | | ???????????????????# ## ############### | | ???????????????????# @ | | ???????????????????# ## ############# #### | | ???????????????????# ### #???????????####??## | | ???????????????????## ? #??????????????????# | | ????????????????????# #### #?????????????###### | | ????????????????????# ##???# #?????????????# | | ????????????????????# ?????# ?????????????# #### | | ????????????????????# ?????###?????????????# #??? | | ????????????????????# ?????????? ??????????# #??? | | ????????????????????# ?????????? ??????????# #??? | | ????????????????????# ?????????? ??????????# #??? | | ????????????????????# ?????????? ??????????# #??? | | ????????????????????# #????????? ??????##### #??? | | ????????????????????# #####????? ??????# #??? | | ????????????????????# #????? ??????# #####??? | | ????????????????????# ### #????# #?????# #??????? | | ????????????????????# #?# #????# #?????# #??????? | | ????????????????????# #?# #????# #?????# #??????? | | ????????????????????# #?# ###### #?????# #??????? | | ????????????????????# #?# ## #?????# #??????? | | ????????????????????# #?##### ## #?????# #??????? | | ????????????????????# #?????# ## #?????# #??????? | | ????????????????????# #?????# ## ##????# #??????? | | ????????????????????# ####### ###### #??????? | | ????????????????????# #??????? | +----------------------------------------------------+ Best States ------------- Heat Dissipation 37 Energy Generation 31 Energy Capacity 350 Matter Stores 300 Matter Capacity 300 Sight Range 16 Robot Scan Range 16 Terrain Scan Density 10 ECM Strength 1 Additional Mass Support 9 Evasion (%) 64 Targeting Accuracy 5 Offensive Hacking 10 Defensive Hacking 10 Item Schematics ----------------- Combat Drone Bay | -6/Data Miner | Free Lgt. Regenerative Plating | -6/Data Miner | Free Cld. Gravmag System | -6/Data Miner | Free Prc. Energy Filter | -6/Data Miner | Free Imp. KE Penetrator | -6/Data Miner | Free Adv. Medium Treads | -6/Data Miner | Free Adv. Reaction Control System | -6/Data Miner | Free Matter Neutralizer | -6/Data Miner | Free Adv. Drone Bay | -6/Data Miner | Free Hardcell Cannon | -6/Data Miner | Free Field Propulsion Array | -6/Data Miner | Free Nova Cannon | -6/Data Miner | Free Antigrav Array | -6/Data Miner | Free Robot Schematics ------------------ B-48 Gladiator | -6/Data Miner | Free Y-64 Sentinel | -6/Data Miner | Free A-15 Conveyor | -6/Data Miner | Free R-10 Processor | -6/Data Miner | Free G-50 Soldier | -6/Data Miner | Free W-44 Eye | -6/Data Miner | Free Fabricated ------------ Nothing Repaired ---------- Nothing Studied --------- Flight Unit | -9/Materials | Hacked EM Pulse Gun | -9/Materials | Hacked Sml. Laser | -9/Materials | Hacked Cesium-ion Thruster | -8/Materials | Hacked Lgt. Ion Engine | -8/Materials | Hacked Alien Tech Used ----------------- None Achievements -------------- Knowing Is Half The Battle The Oracle Challenges ------------ None Game ------ Seed ReinforcedMasterImmobilizer Manual? 0 Play Time 00:35:13 Cumulative 25.4 hours Start 2026.01.22 @ 00:50:42 End 2026.01.22 @ 01:26:58 Sessions 1 Manual Loads 0 Difficulty Rogue Special Mode None Game No. 28 Rogue 28 Adventurer 0 Explorer 0 Win Type - Total 0 Types 0/0/0/0/0/0/0/0/0/0 Lore% 23 Gallery% 27 Achievement% 24 Wizard Run 0 Options --------- Layout 1 ASCII 0 Keyboard 1 Movement Numpad Keybinds 0 Fullscreen 1 Font 48/Smallcaps Map View 50x35 Zoom Use 0% Tactical HUD 1 Map Filters NONE Filters NONE Steam 1 RUN: c8eaf58b-2f59-4f0b-9489-7484fa18f7ef